Workbook

Sheet Top Sheet
D1: Thermal Resistance Tool
D2: Estimated Thermal Resistance
D3: =(theta_jc+1/(1/(Rvia+Rbot_total)+1/Rtop+1/Rcasetop)) -> 30.21312031 | E3: °C / W
D4: Estimated Junction Temperature
D5: =thetaja*Pdiss+Ta -> 70.31968047 | E5: °C
A6: DUT Parameters
A7: θJC from datasheet (C/W) Thermal Resistance to Exposed Pad | B7: θJT from datasheet or calculation (C/W) Thermal Resistance to Case Top of DUT (50-100 - is a good estimate for plastic molding) | C7: Area of DUT Case Top (square mm) | D7: Estimated Power Dissipation (W)
A8: 6 | B8: =thickness_mold/(conduct_mold*mm*casetop_area) -> 135.8695652 | C8: 16 | D8: 1.5
B9: Thermal Conductivity of plastic (W/mK) | C9: Thickeness of molding Top ( mm)
B10: 0.23 | C10: 0.5
A11: Operating Temperatures
A12: Maximum Junction Temperature C | B12: Ambient Temperature C
A13: 125 | B13: 25
A15: PCB Dimensions | E15: PCB Dimensions Converted to the Superior Metric Form
A16: Width of Board (inches) | B16: Length of Board (inches) | C16: Board Thickness (mils) | D16: Copper Weight (oz) | E16: Width of Board (mm) | F16: Board Thickness(mm)
A17: 1.75 | B17: 1 | C17: 65 | D17: 1 | E17: =wid_in*25.4 -> 44.45 | F17: =thick_mils*0.0254 -> 1.651
A18: Width of Top layer copper heatsinking (inches) | B18: Width of Bottom layer copper heatsinking (inches) | E18: Length of Board (mm)
A19: 1.75 | B19: 1.75 | E19: =len_in*25.4 -> 25.4
A20: Length of Top layer copper heatsinking (inches) | B20: Length of Bottom layer copper heatsinking (inches)
A21: 1 | B21: 1
A22: Thermal Vias
A23: Number of Thermal Vias | B23: Via Diameter (mils) | C23: Via Plating Thickness (mils) | E23: Via Diameter (mm) | F23: Via Thickness (mm)
A24: 12 | B24: 8 | C24: 0.7 | E24: =via_diam_mils*0.0254 -> 0.2032 | F24: =via_thick_mils*0.0254 -> 0.01778
A26: Airflow | B26: Heatskink on Bottom | C26: Heatskink on TOP
A27: Airflow in LFPM | B27: θJA from datasheet at desired airflow (C/W) | C27: θJA from datasheet at desired airflow (C/W) | E27: Airflow in m/s | F27: Estimated Airflow due to Natural Convection (m/s)
A28: 0 | B28: 8 | C28: 0 | E28: =velocity_lfpm/(3.28*60) -> 0 | F28: =ABS(((Tj_update-Ta)/(273+Ta)*9.8*MAX(wid_mm,len_mm)/1000))^0.5 -> 0.2915405877

Sheet Calculations
A1: Calculation of heat transfer coefficienct and thermal resistance from PCB Surface to Air per square mm
A2: By Marc Davis-Marsh
A3: Calculate h (heat transfer coefficienct) W /m^2K | B3: =IF(use_rad>0,IF(velocity_lfpm>0,MAX(nu_gr*k/l+hrad,nu_re*k/l+hrad),nu_gr*k/l+hrad),nu_re*k/l+hrad) -> 13.57044805 | C3: Thermal Resistance surface to Air for 1mm^2 (C/W) | D3: =(1000000/B3) -> 73689.53453 | E3: Updated Board Temperature | G3: Use Grashov Number and Radiation
A4: Max h for laminar flow on a small board | B4: 52 | E4: 83.14554866 | G4: 1 | J4: TRUE | L4: Old Values
J5: 1 | L5: 0.25
A6: Length of Board (m) | B6: =MIN(len_mm/1000,wid_mm/1000) -> 0.0254 | E6: Average Board temp | L6: 0.25
A7: Thermal Conductivity of Air (w/m K) | B7: =0.024 -> 0.024 | E7: =SUM(N41:N1041)/MAX(numrings,numrings2) -> 139.1831863 | L7: 0.25
A8: Density of Air ((Kg/m^3) | B8: 1.184 | L8: 0.25
A9: Dynamic Viscosity of Air ((Kg / (m s)) | B9: 1.983e-05 | C9: Kinematic Viscosity of Air (m^2/S) | D9: 1.568e-05
A10: Velocity of Airflow (lfpm) | B10: =velocity_lfpm -> 0 | C10: Velocity of Airflow (m/s) | D10: =1*velocity_ms+velocity_nc -> 0.2915405877
A11: Prandtl Number | B11: 0.7
A12: Reynolds Number | B12: =velocity2*density*l/viscosity -> 442.1419575 | C12: Critical Reynolds Number for Laminar Flow | D12: 500000
A13: Nusselt Number using Reynolds | B13: =0.664*POWER(re,1/2)*POWER(pr,1/3) -> 12.39695308
A14: Grashov number | B14: =ABS(9.8*(0.7*Tj_update-Ta)*l^3/((273+Ta)*kinematic_viscosity^2)) -> 72774.89265 | C14: Heat Transfer Due to Radiation | D14: =0.9*0.000000056703*((273+0.707*Tj_update)^4-(273+Ta)^4)/(273+0.707*Tj_update) -> 0.6508721302 | E14: =0.9*0.000000056703*((273+Tj_update)^4-(273+Ta)^4)*wid_mm*len_mm/1000000 -> 0.4725867807
A15: Nusselt using Grashov | B15: =0.54*POWER(gr*pr,1/4)+0.15*POWER(gr*pr,1/3) -> 13.67321785 | D15: 7.72
A16: Calculation of thermal resistance of Via Array
A17: Via Thermal Resistance C/W | B17: Via Diameter (mm) | C17: Via Thickness (mm)
A18: =thick_mm/(0.39*3.14*((0.5*via_diam_mm)^2-(0.5*(via_diam_mm-2*via_thick_mm))^2)) -> 408.9446066 | B18: =via_diam_mm -> 0.2032 | C18: =via_thick_mm -> 0.01778
A20: Via Array Thermal Resistance C/W | C20: Lateral Thermal Resistance of FR4 (per square mm) | E20: Thermal Resistance of FR4 C/W including Lateral
A21: =IF(num_vias>0,1/((num_vias/via_therm_res)+1/Rfr4_tot),Rfr4_tot) -> 25.17939148 | C21: =IF(velocity_lfpm>0,1/(0.23*mm*0.221/10),1/(0.23*mm*0.221/3.75)) -> 73775.32953 | E21: =1/(SUM(M41:M1041)) -> 96.42094098
A22: =IF(num_vias>0,IF(via_therm_res/num_vias>Rfr4_tot,Rfr4_tot,via_therm_res/num_vias),Rfr4_tot) -> 34.07871721 | C22: Vertical Thermal Resistance of FR4 (per square mm)
C23: =0.221/(0.23*mm) -> 960.8695652 | W23: 57.33821554
A24: Calculation of thermal resistance of the board copper per square mm
A26: Copper Thermal Resistance per square mm | B26: Adjustment Scaling | C26: Top copper Lateral Resistance | D26: Bottom Copper Lateral | AA26: 57.33821554
A27: =1/(0.39*0.035/cop_scale*copper_wt) -> 732.6007326 | B27: 10 | C27: =topcopwid*topcoplen/(wid_in*len_in) -> 1 | D27: =botcopwid*botcoplen/(wid_in*len_in) -> 1
C28: =C27*Rlateral+_Rfr4*(1-C27) -> 732.6007326 | D28: =D27*Rlateral+_Rfr4*(1-D27) -> 732.6007326
A29: Calculations of Thermal Resistance | AE29: 57.33821554
A31: Number of Rings of 1mm squares of PCB | C31: Top copper Estimated Thermal Resistance
A32: =ROUND((wid_mm-1)/2,2) -> 21.73 | C32: =1/SUM(F41:F1041) -> 96.32012243 | AI32: 57.33821554
A33: Number of Rings of 1mm squares of PCB
A34: =ROUND((len_mm-1)/2,2) -> 12.2 | C34: Bottom copper Estimated Thermal Resistance | E34: Combination of bottom copper and Heatsink
A35: Number of Rings of 1mm squares of Top Copper | C35: =1/SUM(G41:G1044) -> 96.32012243 | E35: =IF(Rheatsink>0,Rheatsink*Rbot/(Rheatsink+Rbot),Rbot) -> 7.386503788 | AM35: 57.33821554
A36: =ROUND((AVERAGE(topcopwid*25.4,topcoplen*25.4)-1)/2,2) -> 16.96
A37: Number of Rings of 1mm squares of Bot Copper | C37: Combination of Case Top Thermal Resistance and Heatsink
A38: =ROUND((AVERAGE(botcopwid*25.4,botcoplen*25.4)-1)/2,2) -> 16.96 | C38: =IF(Rheatsink_topcase>0,theta_jt+(Rsa/casetop_area*Rheatsink_topcase/(Rheatsink_topcase+Rsa/casetop_area)),theta_jt+Rsa/casetop_area) -> 4741.465473 | AQ38: 57.33821554
A40: Ring Number | B40: Estimated Thermal Resistance For Top Copper Ring | C40: Estimated Thermal Resistance For FR4 to bottom Copper | D40: M | E40: L | F40: Estimated Thermal Resistance For Top Copper Ring | G40: Estimated Thermal Resistance For Bottom Copper Ring | H40: Max Width | I40: Top Copper | J40: Bot Copper | K40: Top Average | L40: Bot Average | N40: Average board temperature
A41: 0.1 | B41: =1/Rsa -> 1.357044805e-05 | C41: =1/Rfr4_vert -> 0.001040723982 | D41: =IF(N<numrings,N,0) -> 0.1 | E41: =IF(N<numrings2,N,0) -> 0.1 | F41: =1/Rsa -> 1.357044805e-05 | G41: =1/Rsa -> 1.357044805e-05 | H41: =MAX(X) -> 21 | I41: =IF(N<numrings3,N,CEILING(numrings3,0)) -> 0.1 | J41: =IF(N<numrings4,N,CEILING(numrings4,0)) -> 0.1 | K41: =(Rlateral*tc+_Rfr4*(N-tc))/N -> 732.6007326 | L41: =(Rlateral*bc+_Rfr4*(N-bc))/N -> 732.6007326 | M41: =1/_Rfr4 -> 1.355466667e-05 | N41: =Tjunction -> 70.31968047 | O41: =Pdiss -> 1.5 | P41: =Tjunction -> 70.31968047 | AU41: 57.33821554
A42: 1 | B42: =IF(N<=numrings,N*8/(Rsa+N*Rlateral),0) -> 0.0001074949002 | C42: =IF(N<=numrings,N*8/(Rfr4_vert+N*Rlateral_top_ave),0) -> 0.004724027348 | D42: =IF(N<numrings,N,0) -> 1 | E42: =IF(N<numrings2,N,0) -> 1 | F42: =IF(X>0,IF(Y>0,N*8/(Rsa+N*Rlateral_top_ave),(4*length_max+2)/(Rsa+N*Rlateral_top_ave)),IF(Y>0,(4*width_max+2)/(Rsa+N*Rlateral_top_ave),0)) -> 0.0001074949002 | G42: =IF(X>0,IF(Y>0,N*8/(Rsa+N*Rlateral_bot_ave),(4*length_max+2)/(Rsa+N*Rlateral_bot_ave)),IF(Y>0,(4*width_max+2)/(Rsa+N*Rlateral_bot_ave),0)) -> 0.0001074949002 | H42: Max Length | I42: 1 | J42: 1 | K42: =(Rlateral*tc+_Rfr4*(N-tc))/N -> 732.6007326 | L42: 732.6007326 | M42: =IF(X>0,IF(Y>0,N*8/(_Rfr4+N*Rlateral_top_ave),(4*length_max+2)/(_Rfr4+N*Rlateral_top_ave)),IF(Y>0,(4*width_max+2)/(_Rfr4+N*Rlateral_top_ave),0)) -> 0.0001073711211 | N42: =IF($F42=0,0,IF(pdiss_ave*(SUM($F$41:$F$1041)-$F41)^-1<Ta,Ta,pdiss_ave*(SUM($F$41:$F$1041)-$F41)^-1)) -> 143.1828699 | O42: =$O41-(SUM(F41:F1041)-F42)*$O41 -> 1.484588172 | P42: =pdiss_ave*(SUM($F41:$F$1041)-$F41)^-1 -> 143.1828699
A43: 2 | B43: =IF(N<=numrings,N*8/(Rsa+N*Rlateral),0) -> 0.0002128941016 | C43: =IF(N<=numrings,N*8/(Rfr4_vert+N*Rlateral_top_ave),0) -> 0.006595025372 | D43: 2 | E43: 2 | F43: =IF(X>0,IF(Y>0,N*8/(Rsa+N*Rlateral_top_ave),(4*length_max+2)/(Rsa+N*Rlateral_top_ave)),IF(Y>0,(4*width_max+2)/(Rsa+N*Rlateral_top_ave),0)) -> 0.0002128941016 | G43: =IF(X>0,IF(Y>0,N*8/(Rsa+N*Rlateral_bot_ave),(4*length_max+2)/(Rsa+N*Rlateral_bot_ave)),IF(Y>0,(4*width_max+2)/(Rsa+N*Rlateral_bot_ave),0)) -> 0.0002128941016 | H43: =MAX(Y) -> 12 | I43: 2 | J43: 2 | K43: =(Rlateral*tc+_Rfr4*(N-tc))/N -> 732.6007326 | L43: 732.6007326 | M43: 0.0002126513435 | N43: 143.024373 | O43: =$O42-(SUM(F42:F1042)-F43)*$O42 -> 1.469511315 | P43: =pdiss_ave*(SUM($F42:$F$1041)-$F42)^-1 -> 143.2135269
A44: 3 | B44: 0.0003162582986 | C44: 0.007598130417 | D44: 3 | E44: 3 | F44: =IF(X>0,IF(Y>0,N*8/(Rsa+N*Rlateral_top_ave),(4*length_max+2)/(Rsa+N*Rlateral_top_ave)),IF(Y>0,(4*width_max+2)/(Rsa+N*Rlateral_top_ave),0)) -> 0.0003162582986 | G44: =IF(X>0,IF(Y>0,N*8/(Rsa+N*Rlateral_bot_ave),(4*length_max+2)/(Rsa+N*Rlateral_bot_ave)),IF(Y>0,(4*width_max+2)/(Rsa+N*Rlateral_bot_ave),0)) -> 0.0003162582986 | I44: 3 | J44: 3 | K44: 732.6007326 | L44: 732.6007326 | M44: 0.0003159011542 | N44: 143.0696838 | O44: 1.454897433 | P44: =pdiss_ave*(SUM($F43:$F$1041)-$F43)^-1 -> 144.7934727 | AY44: 57.33821554
A45: 4 | B45: 0.0004176458642 | C45: 0.008223531001 | D45: 4 | E45: 4 | F45: 0.0004176458642 | G45: =IF(X>0,IF(Y>0,N*8/(Rsa+N*Rlateral_bot_ave),(4*length_max+2)/(Rsa+N*Rlateral_bot_ave)),IF(Y>0,(4*width_max+2)/(Rsa+N*Rlateral_bot_ave),0)) -> 0.0004176458642 | I45: 4 | J45: 4 | K45: 732.6007326 | L45: 732.6007326 | M45: 0.0004171787293 | N45: 143.1468738 | O45: 1.440886128 | P45: =pdiss_ave*(SUM($F44:$F$1041)-$F44)^-1 -> 148.0591315
A46: 5 | B46: 0.0005171129601 | C46: 0.008650756201 | D46: 5 | E46: 5 | F46: 0.0005171129601 | G46: 0.0005171129601 | I46: 5 | J46: 5 | K46: 732.6007326 | L46: 732.6007326 | M46: 0.0005165400436 | N46: 143.270911 | O46: 1.427608772 | P46: =pdiss_ave*(SUM($F45:$F$1041)-$F45)^-1 -> 153.2725708
A47: 6 | B47: 0.0006147136403 | C47: 0.008961118891 | D47: 6 | E47: 6 | F47: 0.0006147136403 | G47: 0.0006147136403 | I47: 6 | J47: 6 | K47: 732.6007326 | L47: 732.6007326 | M47: 0.0006140389732 | N47: 143.4565486 | O47: 1.415189333 | P47: =pdiss_ave*(SUM($F46:$F$1041)-$F46)^-1 -> 160.8705317 | BC47: 57.33821554
A48: 7 | B48: 0.0007104999489 | C48: 0.009196799648 | D48: 7 | E48: 7 | F48: 0.0007104999489 | G48: 0.0007104999489 | I48: 7 | J48: 7 | K48: 732.6007326 | L48: 732.6007326 | M48: 0.0007097273936 | N48: 143.7183836 | O48: 1.403745305 | P48: =pdiss_ave*(SUM($F47:$F$1041)-$F47)^-1 -> 171.5575854
A49: 8 | B49: 0.0008045220132 | C49: 0.009381859441 | D49: 8 | E49: 8 | F49: 0.0008045220132 | G49: 0.0008045220132 | I49: 8 | J49: 8 | K49: 732.6007326 | L49: 732.6007326 | M49: 0.0008036552714 | N49: 144.0709283 | O49: 1.393388705 | P49: =pdiss_ave*(SUM($F48:$F$1041)-$F48)^-1 -> 186.4849406
A50: 9 | B50: 0.0008968281305 | C50: 0.009531025672 | D50: 9 | E50: 9 | F50: 0.0008968281305 | G50: 0.0008968281305 | I50: 9 | J50: 9 | K50: 732.6007326 | L50: 732.6007326 | M50: 0.0008958707512 | N50: 144.5286955 | O50: 1.384227135 | P50: =pdiss_ave*(SUM($F49:$F$1041)-$F49)^-1 -> 207.6132748 | BG50: 57.33821554
A51: 10 | B51: 0.0009874648514 | C51: 0.009653817844 | D51: 10 | E51: 10 | F51: 0.0009874648514 | G51: 0.0009874648514 | I51: 10 | J51: 10 | K51: 732.6007326 | L51: 732.6007326 | M51: 0.000986420238 | N51: 145.1062945 | O51: 1.376364905 | P51: =pdiss_ave*(SUM($F50:$F$1041)-$F50)^-1 -> 238.5171827
A52: 11 | B52: 0.001076477058 | C52: 0.0097566626 | D52: 11 | E52: 11 | F52: 0.001076477058 | G52: 0.001076477058 | I52: 11 | J52: 11 | K52: 732.6007326 | L52: 732.6007326 | M52: 0.001075348475 | N52: 145.8185414 | O52: 1.369904208 | P52: =pdiss_ave*(SUM($F51:$F$1041)-$F51)^-1 -> 286.4086008
A53: 12 | B53: 0.001163908036 | C53: 0.00984405544 | D53: 12 | E53: 12 | F53: 0.001163908036 | G53: 0.001163908036 | I53: 12 | J53: 12 | K53: 732.6007326 | L53: 732.6007326 | M53: 0.001162698618 | N53: 146.6805804 | O53: 1.364946342 | P53: =pdiss_ave*(SUM($F52:$F$1041)-$F52)^-1 -> 368.2510807 | BK53: 57.33821554
A54: 13 | B54: 0.001249799551 | C54: 0.009919235402 | D54: 13 | E54: 0 | F54: 0.0006008651685 | G54: 0.0006008651685 | I54: 13 | J54: 13 | K54: 732.6007326 | L54: 732.6007326 | M54: 0.0006002462999 | N54: 147.6119305 | O54: 1.360707229 | P54: =pdiss_ave*(SUM($F53:$F$1041)-$F53)^-1 -> 535.1518414
A55: 14 | B55: 0.001334191905 | C55: 0.009984595355 | D55: 14 | E55: 0 | F55: 0.0005956213862 | G55: 0.0005956213862 | I55: 14 | J55: 14 | K55: 732.6007326 | L55: 732.6007326 | M55: 0.0005950132667 | N55: 138.8439519 | O55: 1.358057885 | P55: =pdiss_ave*(SUM($F54:$F$1041)-$F54)^-1 -> 699.3841025
A56: 15 | B56: 0.00141712401 | C56: 0.01004194138 | D56: 15 | E56: 0 | F56: 0.0005904683375 | G56: 0.0005904683375 | I56: 15 | J56: 15 | K56: 732.6007326 | L56: 732.6007326 | M56: 0.0005898706897 | N56: 138.5820338 | O56: 1.35622271 | P56: =pdiss_ave*(SUM($F55:$F$1041)-$F55)^-1 -> 1007.467789 | BO56: 57.33821554
A57: 16 | B57: 0.001498633441 | C57: 0.01009266224 | D57: 16 | E57: 0 | F57: 0.0005854036878 | G57: 0.0005854036878 | I57: 16 | J57: 16 | K57: 732.6007326 | L57: 732.6007326 | M57: 0.0005848162433 | N57: 138.4037287 | O57: 1.355190942 | P57: =pdiss_ave*(SUM($F56:$F$1041)-$F56)^-1 -> 1793.288769
A58: 17 | B58: 0.001578756494 | C58: 0.0001083543195 | D58: 17 | E58: 0 | F58: 3.765428458e-05 | G58: 3.765428458e-05 | I58: 0 | J58: 0 | K58: 73775.32953 | L58: 73775.32953 | M58: 3.765185185e-05 | N58: 138.232848 | O58: 1.354217851 | P58: =pdiss_ave*(SUM($F57:$F$1041)-$F57)^-1 -> 7952.058494
A59: 18 | B59: 0.001657528243 | C59: 0.000108358928 | D59: 18 | E59: 0 | F59: 3.567235882e-05 | G59: 3.567235882e-05 | I59: 0 | J59: 0 | K59: 73775.32953 | L59: 73775.32953 | M59: 3.567017544e-05 | N59: 130.8956096 | O59: 1.354035539 | P59: =pdiss_ave*(SUM($F58:$F$1041)-$F58)^-1 -> 10208.0815 | BS59: 57.33821554
A60: 19 | B60: 0.001734982587 | C60: 0.0001083630518 | D60: 19 | E60: 0 | F60: 3.388863716e-05 | G60: 3.388863716e-05 | I60: 0 | J60: 0 | K60: 73775.32953 | L60: 73775.32953 | M60: 3.388666667e-05 | N60: 130.8576115 | O60: 1.353901821 | P60: =pdiss_ave*(SUM($F59:$F$1041)-$F59)^-1 -> 13961.90628
A61: 20 | B61: 0.0018111523 | C61: 0.0001083667635 | D61: 20 | E61: 0 | F61: 3.227480316e-05 | G61: 3.227480316e-05 | I61: 0 | J61: 0 | K61: 73775.32953 | L61: 73775.32953 | M61: 3.227301587e-05 | N61: 130.8265909 | O61: 1.353814229 | P61: =pdiss_ave*(SUM($F60:$F$1041)-$F60)^-1 -> 21461.01367
A62: 21 | B62: 0.00188606908 | C62: 0.0001083701218 | D62: 21 | E62: 0 | F62: 3.08076891e-05 | G62: 3.08076891e-05 | I62: 0 | J62: 0 | K62: 73775.32953 | L62: 73775.32953 | M62: 3.080606061e-05 | N62: 130.8019694 | O62: 1.353770535 | P62: =pdiss_ave*(SUM($F61:$F$1041)-$F61)^-1 -> 43942.61867 | BW62: 57.33821554
A63: 22 | B63: 0 | C63: 0 | D63: 0 | E63: 0 | F63: 0 | G63: 0 | I63: 0 | J63: 0 | K63: 73775.32953 | L63: 73775.32953 | M63: 0 | N63: 0 | O63: 1.353728828 | P63: =pdiss_ave*(SUM($F62:$F$1041)-$F62)^-1 -> 
A64: 23 | B64: 0 | C64: 0 | D64: 0 | E64: 0 | F64: 0 | G64: 0 | I64: 0 | J64: 0 | K64: 73775.32953 | L64: 73775.32953 | M64: 0 | N64: 0 | O64: 1.353728828 | P64: =pdiss_ave*(SUM($F63:$F$1041)-$F63)^-1 -> 
A65: 24 | B65: 0 | C65: 0 | D65: 0 | E65: 0 | F65: 0 | G65: 0 | I65: 0 | J65: 0 | K65: 73775.32953 | L65: 73775.32953 | M65: 0 | N65: 0 | O65: 1.353728828 | P65: =pdiss_ave*(SUM($F64:$F$1041)-$F64)^-1 ->  | CA65: 57.33821554
A66: 25 | B66: 0 | C66: 0 | D66: 0 | E66: 0 | F66: 0 | G66: 0 | I66: 0 | J66: 0 | K66: 73775.32953 | L66: 73775.32953 | M66: 0 | N66: 0 | O66: 1.353728828 | P66: =pdiss_ave*(SUM($F65:$F$1041)-$F65)^-1 -> 
A67: 26 | B67: 0 | C67: 0 | D67: 0 | E67: 0 | F67: 0 | G67: 0 | I67: 0 | J67: 0 | K67: 73775.32953 | L67: 73775.32953 | M67: 0 | N67: 0 | O67: 1.353728828 | P67: =pdiss_ave*(SUM($F66:$F$1041)-$F66)^-1 -> 
A68: 27 | B68: 0 | C68: 0 | D68: 0 | E68: 0 | F68: 0 | G68: 0 | I68: 0 | J68: 0 | K68: 73775.32953 | L68: 73775.32953 | M68: 0 | N68: 0 | O68: 1.353728828 | P68: =pdiss_ave*(SUM($F67:$F$1041)-$F67)^-1 ->  | CE68: 57.33821554
A69: 28 | B69: 0 | C69: 0 | D69: 0 | E69: 0 | F69: 0 | G69: 0 | I69: 0 | J69: 0 | K69: 73775.32953 | L69: 73775.32953 | M69: 0 | N69: 0 | O69: 1.353728828 | P69: =pdiss_ave*(SUM($F68:$F$1041)-$F68)^-1 -> 
A70: 29 | B70: 0 | C70: 0 | D70: 0 | E70: 0 | F70: 0 | G70: 0 | I70: 0 | J70: 0 | K70: 73775.32953 | L70: 73775.32953 | M70: 0 | N70: 0 | O70: 1.353728828 | P70: =pdiss_ave*(SUM($F69:$F$1041)-$F69)^-1 -> 
A71: 30 | B71: 0 | C71: 0 | D71: 0 | E71: 0 | F71: 0 | G71: 0 | I71: 0 | J71: 0 | K71: 73775.32953 | L71: 73775.32953 | M71: 0 | N71: 0 | O71: 1.353728828 | P71: =pdiss_ave*(SUM($F70:$F$1041)-$F70)^-1 ->  | CI71: 91.45136851
A72: 31 | B72: 0 | C72: 0 | D72: 0 | E72: 0 | F72: 0 | G72: 0 | I72: 0 | J72: 0 | K72: 73775.32953 | L72: 73775.32953 | M72: 0 | N72: 0 | O72: 1.353728828 | P72: =pdiss_ave*(SUM($F71:$F$1041)-$F71)^-1 -> 
A73: 32 | B73: 0 | C73: 0 | D73: 0 | E73: 0 | F73: 0 | G73: 0 | I73: 0 | J73: 0 | K73: 73775.32953 | L73: 73775.32953 | M73: 0 | N73: 0 | O73: 1.353728828 | P73: =pdiss_ave*(SUM($F72:$F$1041)-$F72)^-1 -> 
A74: 33 | B74: 0 | C74: 0 | D74: 0 | E74: 0 | F74: 0 | G74: 0 | I74: 0 | J74: 0 | K74: 73775.32953 | L74: 73775.32953 | M74: 0 | N74: 0 | O74: 1.353728828 | P74: =pdiss_ave*(SUM($F73:$F$1041)-$F73)^-1 ->  | CM74: 91.45136851
A75: 34 | B75: 0 | C75: 0 | D75: 0 | E75: 0 | F75: 0 | G75: 0 | I75: 0 | J75: 0 | K75: 73775.32953 | L75: 73775.32953 | M75: 0 | N75: 0 | O75: 1.353728828 | P75: =pdiss_ave*(SUM($F74:$F$1041)-$F74)^-1 -> 
A76: 35 | B76: 0 | C76: 0 | D76: 0 | E76: 0 | F76: 0 | G76: 0 | I76: 0 | J76: 0 | K76: 73775.32953 | L76: 73775.32953 | M76: 0 | N76: 0 | O76: 1.353728828 | P76: =pdiss_ave*(SUM($F75:$F$1041)-$F75)^-1 -> 
A77: 36 | B77: 0 | C77: 0 | D77: 0 | E77: 0 | F77: 0 | G77: 0 | I77: 0 | J77: 0 | K77: 73775.32953 | L77: 73775.32953 | M77: 0 | N77: 0 | O77: 1.353728828 | P77: =pdiss_ave*(SUM($F76:$F$1041)-$F76)^-1 ->  | CQ77: 91.45136851
A78: 37 | B78: 0 | C78: 0 | D78: 0 | E78: 0 | F78: 0 | G78: 0 | I78: 0 | J78: 0 | K78: 73775.32953 | L78: 73775.32953 | M78: 0 | N78: 0 | O78: 1.353728828 | P78: =pdiss_ave*(SUM($F77:$F$1041)-$F77)^-1 -> 
A79: 38 | B79: 0 | C79: 0 | D79: 0 | E79: 0 | F79: 0 | G79: 0 | I79: 0 | J79: 0 | K79: 73775.32953 | L79: 73775.32953 | M79: 0 | N79: 0 | O79: 1.353728828 | P79: =pdiss_ave*(SUM($F78:$F$1041)-$F78)^-1 -> 
A80: 39 | B80: 0 | C80: 0 | D80: 0 | E80: 0 | F80: 0 | G80: 0 | I80: 0 | J80: 0 | K80: 73775.32953 | L80: 73775.32953 | M80: 0 | N80: 0 | O80: 1.353728828 | P80: =pdiss_ave*(SUM($F79:$F$1041)-$F79)^-1 ->  | CU80: 91.45136851
A81: 40 | B81: 0 | C81: 0 | D81: 0 | E81: 0 | F81: 0 | G81: 0 | I81: 0 | J81: 0 | K81: 73775.32953 | L81: 73775.32953 | M81: 0 | N81: 0 | O81: 1.353728828 | P81: =pdiss_ave*(SUM($F80:$F$1041)-$F80)^-1 -> 
A82: 41 | B82: 0 | C82: 0 | D82: 0 | E82: 0 | F82: 0 | G82: 0 | I82: 0 | J82: 0 | K82: 73775.32953 | L82: 73775.32953 | M82: 0 | N82: 0 | O82: 1.353728828 | P82: =pdiss_ave*(SUM($F81:$F$1041)-$F81)^-1 -> 
A83: 42 | B83: 0 | C83: 0 | D83: 0 | E83: 0 | F83: 0 | G83: 0 | I83: 0 | J83: 0 | K83: 73775.32953 | L83: 73775.32953 | M83: 0 | N83: 0 | O83: 1.353728828 | P83: =pdiss_ave*(SUM($F82:$F$1041)-$F82)^-1 ->  | CY83: 91.45136851
A84: 43 | B84: 0 | C84: 0 | D84: 0 | E84: 0 | F84: 0 | G84: 0 | I84: 0 | J84: 0 | K84: 73775.32953 | L84: 73775.32953 | M84: 0 | N84: 0 | O84: 1.353728828 | P84: =pdiss_ave*(SUM($F83:$F$1041)-$F83)^-1 -> 
A85: 44 | B85: 0 | C85: 0 | D85: 0 | E85: 0 | F85: 0 | G85: 0 | I85: 0 | J85: 0 | K85: 73775.32953 | L85: 73775.32953 | M85: 0 | N85: 0 | O85: 1.353728828 | P85: =pdiss_ave*(SUM($F84:$F$1041)-$F84)^-1 -> 
A86: 45 | B86: 0 | C86: 0 | D86: 0 | E86: 0 | F86: 0 | G86: 0 | I86: 0 | J86: 0 | K86: 73775.32953 | L86: 73775.32953 | M86: 0 | N86: 0 | O86: 1.353728828 | P86: =pdiss_ave*(SUM($F85:$F$1041)-$F85)^-1 ->  | DC86: 91.45136851
A87: 46 | B87: 0 | C87: 0 | D87: 0 | E87: 0 | F87: 0 | G87: 0 | I87: 0 | J87: 0 | K87: 73775.32953 | L87: 73775.32953 | M87: 0 | N87: 0 | O87: 1.353728828
A88: 47 | B88: 0 | C88: 0 | D88: 0 | E88: 0 | F88: 0 | G88: 0 | I88: 0 | J88: 0 | K88: 73775.32953 | L88: 73775.32953 | M88: 0 | N88: 0 | O88: 1.353728828
A89: 48 | B89: 0 | C89: 0 | D89: 0 | E89: 0 | F89: 0 | G89: 0 | I89: 0 | J89: 0 | K89: 73775.32953 | L89: 73775.32953 | M89: 0 | N89: 0 | O89: 1.353728828 | DG89: 91.45136851
A90: 49 | B90: 0 | C90: 0 | D90: 0 | E90: 0 | F90: 0 | G90: 0 | I90: 0 | J90: 0 | K90: 73775.32953 | L90: 73775.32953 | M90: 0 | N90: 0 | O90: 1.353728828
A91: 50 | B91: 0 | C91: 0 | D91: 0 | E91: 0 | F91: 0 | G91: 0 | I91: 0 | J91: 0 | K91: 73775.32953 | L91: 73775.32953 | M91: 0 | N91: 0 | O91: 1.353728828
A92: 51 | B92: 0 | C92: 0 | D92: 0 | E92: 0 | F92: 0 | G92: 0 | I92: 0 | J92: 0 | K92: 73775.32953 | L92: 73775.32953 | M92: 0 | N92: 0 | O92: 1.353728828 | DK92: 91.45136851
A93: 52 | B93: 0 | C93: 0 | D93: 0 | E93: 0 | F93: 0 | G93: 0 | I93: 0 | J93: 0 | K93: 73775.32953 | L93: 73775.32953 | M93: 0 | N93: 0 | O93: 1.353728828
A94: 53 | B94: 0 | C94: 0 | D94: 0 | E94: 0 | F94: 0 | G94: 0 | I94: 0 | J94: 0 | K94: 73775.32953 | L94: 73775.32953 | M94: 0 | N94: 0 | O94: 1.353728828
A95: 54 | B95: 0 | C95: 0 | D95: 0 | E95: 0 | F95: 0 | G95: 0 | I95: 0 | J95: 0 | K95: 73775.32953 | L95: 73775.32953 | M95: 0 | N95: 0 | O95: 1.353728828 | DO95: 91.45136851
A96: 55 | B96: 0 | C96: 0 | D96: 0 | E96: 0 | F96: 0 | G96: 0 | I96: 0 | J96: 0 | K96: 73775.32953 | L96: 73775.32953 | M96: 0 | N96: 0 | O96: 1.353728828
A97: 56 | B97: 0 | C97: 0 | D97: 0 | E97: 0 | F97: 0 | G97: 0 | I97: 0 | J97: 0 | K97: 73775.32953 | L97: 73775.32953 | M97: 0 | N97: 0 | O97: 1.353728828
A98: 57 | B98: 0 | C98: 0 | D98: 0 | E98: 0 | F98: 0 | G98: 0 | I98: 0 | J98: 0 | K98: 73775.32953 | L98: 73775.32953 | M98: 0 | N98: 0 | O98: 1.353728828 | DS98: 91.45136851
A99: 58 | B99: 0 | C99: 0 | D99: 0 | E99: 0 | F99: 0 | G99: 0 | I99: 0 | J99: 0 | K99: 73775.32953 | L99: 73775.32953 | M99: 0 | N99: 0 | O99: 1.353728828
A100: 59 | B100: 0 | C100: 0 | D100: 0 | E100: 0 | F100: 0 | G100: 0 | I100: 0 | J100: 0 | K100: 73775.32953 | L100: 73775.32953 | M100: 0 | N100: 0 | O100: 1.353728828
A101: 60 | B101: 0 | C101: 0 | D101: 0 | E101: 0 | F101: 0 | G101: 0 | I101: 0 | J101: 0 | K101: 73775.32953 | L101: 73775.32953 | M101: 0 | N101: 0 | O101: 1.353728828 | DW101: 91.45136851
A102: 61 | B102: 0 | C102: 0 | D102: 0 | E102: 0 | F102: 0 | G102: 0 | I102: 0 | J102: 0 | K102: 73775.32953 | L102: 73775.32953 | M102: 0 | N102: 0 | O102: 1.353728828
A103: 62 | B103: 0 | C103: 0 | D103: 0 | E103: 0 | F103: 0 | G103: 0 | I103: 0 | J103: 0 | K103: 73775.32953 | L103: 73775.32953 | M103: 0 | N103: 0 | O103: 1.353728828
A104: 63 | B104: 0 | C104: 0 | D104: 0 | E104: 0 | F104: 0 | G104: 0 | I104: 0 | J104: 0 | K104: 73775.32953 | L104: 73775.32953 | M104: 0 | N104: 0 | O104: 1.353728828 | EA104: 91.45136851
A105: 64 | B105: 0 | C105: 0 | D105: =IF(N<numrings,N,0) -> 0 | E105: =IF(N<numrings2,N,0) -> 0 | F105: 0 | G105: 0 | I105: =IF(N<numrings3,N,CEILING(numrings3,0)) -> 0 | J105: =IF(N<numrings4,N,CEILING(numrings4,0)) -> 0 | K105: =(Rlateral*tc+_Rfr4*(N-tc))/N -> 73775.32953 | L105: =(Rlateral*bc+_Rfr4*(N-bc))/N -> 73775.32953 | M105: 0 | N105: 0 | O105: 1.353728828
A106: 65 | B106: =IF(N<=numrings,N*8/(Rsa+N*Rlateral),0) -> 0 | C106: =IF(N<=numrings,N*8/(Rfr4_vert+N*Rlateral_top_ave),0) -> 0 | D106: 0 | E106: 0 | F106: =IF(X>0,IF(Y>0,N*8/(Rsa+N*Rlateral_top_ave),(4*length_max+2)/(Rsa+N*Rlateral_top_ave)),IF(Y>0,(4*width_max+2)/(Rsa+N*Rlateral_top_ave),0)) -> 0 | G106: =IF(X>0,IF(Y>0,N*8/(Rsa+N*Rlateral_bot_ave),(4*length_max+2)/(Rsa+N*Rlateral_bot_ave)),IF(Y>0,(4*width_max+2)/(Rsa+N*Rlateral_bot_ave),0)) -> 0 | I106: 0 | J106: 0 | K106: 73775.32953 | L106: 73775.32953 | M106: =IF(X>0,IF(Y>0,N*8/(_Rfr4+N*Rlateral_top_ave),(4*length_max+2)/(_Rfr4+N*Rlateral_top_ave)),IF(Y>0,(4*width_max+2)/(_Rfr4+N*Rlateral_top_ave),0)) -> 0 | N106: =IF($F106=0,0,IF(pdiss_ave*(SUM($F$41:$F$1041)-$F105)^-1<Ta,Ta,pdiss_ave*(SUM($F$41:$F$1041)-$F105)^-1)) -> 0 | O106: 1.353728828
A107: 66 | B107: 0 | C107: 0 | D107: 0 | E107: 0 | F107: 0 | G107: 0 | I107: 0 | J107: 0 | K107: 73775.32953 | L107: 73775.32953 | M107: 0 | N107: 0 | O107: =$O106-(SUM(F106:F1106)-F107)*$O106 -> 1.353728828 | EE107: 91.45136851
A108: 67 | B108: 0 | C108: 0 | D108: 0 | E108: 0 | F108: 0 | G108: 0 | I108: 0 | J108: 0 | K108: 73775.32953 | L108: 73775.32953 | M108: 0 | N108: 0 | O108: 1.353728828
A109: 68 | B109: 0 | C109: 0 | D109: 0 | E109: 0 | F109: 0 | G109: 0 | I109: 0 | J109: 0 | K109: 73775.32953 | L109: 73775.32953 | M109: 0 | N109: 0 | O109: 1.353728828
A110: 69 | B110: 0 | C110: 0 | D110: 0 | E110: 0 | F110: 0 | G110: 0 | I110: 0 | J110: 0 | K110: 73775.32953 | L110: 73775.32953 | M110: 0 | N110: 0 | O110: 1.353728828 | EI110: 91.45136851
A111: 70 | B111: 0 | C111: 0 | D111: 0 | E111: 0 | F111: 0 | G111: 0 | I111: 0 | J111: 0 | K111: 73775.32953 | L111: 73775.32953 | M111: 0 | N111: 0 | O111: 1.353728828
A112: 71 | B112: 0 | C112: 0 | D112: 0 | E112: 0 | F112: 0 | G112: 0 | I112: 0 | J112: 0 | K112: 73775.32953 | L112: 73775.32953 | M112: 0 | N112: 0 | O112: 1.353728828
A113: 72 | B113: 0 | C113: 0 | D113: 0 | E113: 0 | F113: 0 | G113: 0 | I113: 0 | J113: 0 | K113: 73775.32953 | L113: 73775.32953 | M113: 0 | N113: 0 | O113: 1.353728828 | EM113: 91.45136851
A114: 73 | B114: 0 | C114: 0 | D114: 0 | E114: 0 | F114: 0 | G114: 0 | I114: 0 | J114: 0 | K114: 73775.32953 | L114: 73775.32953 | M114: 0 | N114: 0 | O114: 1.353728828
A115: 74 | B115: 0 | C115: 0 | D115: 0 | E115: 0 | F115: 0 | G115: 0 | I115: 0 | J115: 0 | K115: 73775.32953 | L115: 73775.32953 | M115: 0 | N115: 0 | O115: 1.353728828
A116: 75 | B116: 0 | C116: 0 | D116: 0 | E116: 0 | F116: 0 | G116: 0 | I116: 0 | J116: 0 | K116: 73775.32953 | L116: 73775.32953 | M116: 0 | N116: 0 | O116: 1.353728828 | EQ116: 91.45136851
A117: 76 | B117: 0 | C117: 0 | D117: 0 | E117: 0 | F117: 0 | G117: 0 | I117: 0 | J117: 0 | K117: 73775.32953 | L117: 73775.32953 | M117: 0 | N117: 0 | O117: 1.353728828
A118: 77 | B118: 0 | C118: 0 | D118: 0 | E118: 0 | F118: 0 | G118: 0 | I118: 0 | J118: 0 | K118: 73775.32953 | L118: 73775.32953 | M118: 0 | N118: 0 | O118: 1.353728828
A119: 78 | B119: 0 | C119: 0 | D119: 0 | E119: 0 | F119: 0 | G119: 0 | I119: 0 | J119: 0 | K119: 73775.32953 | L119: 73775.32953 | M119: 0 | N119: 0 | O119: 1.353728828 | EU119: 91.45136851
A120: 79 | B120: 0 | C120: 0 | D120: 0 | E120: 0 | F120: 0 | G120: 0 | I120: 0 | J120: 0 | K120: 73775.32953 | L120: 73775.32953 | M120: 0 | N120: 0 | O120: 1.353728828
A121: 80 | B121: 0 | C121: 0 | D121: 0 | E121: 0 | F121: 0 | G121: 0 | I121: 0 | J121: 0 | K121: 73775.32953 | L121: 73775.32953 | M121: 0 | N121: 0 | O121: 1.353728828
A122: 81 | B122: 0 | C122: 0 | D122: 0 | E122: 0 | F122: 0 | G122: 0 | I122: 0 | J122: 0 | K122: 73775.32953 | L122: 73775.32953 | M122: 0 | N122: 0 | O122: 1.353728828 | EY122: 91.45136851
A123: 82 | B123: 0 | C123: 0 | D123: 0 | E123: 0 | F123: 0 | G123: 0 | I123: 0 | J123: 0 | K123: 73775.32953 | L123: 73775.32953 | M123: 0 | N123: 0 | O123: 1.353728828
A124: 83 | B124: 0 | C124: 0 | D124: 0 | E124: 0 | F124: 0 | G124: 0 | I124: 0 | J124: 0 | K124: 73775.32953 | L124: 73775.32953 | M124: 0 | N124: 0 | O124: 1.353728828
A125: 84 | B125: 0 | C125: 0 | D125: 0 | E125: 0 | F125: 0 | G125: 0 | I125: 0 | J125: 0 | K125: 73775.32953 | L125: 73775.32953 | M125: 0 | N125: 0 | O125: 1.353728828 | FC125: 91.45136851
A126: 85 | B126: 0 | C126: 0 | D126: 0 | E126: 0 | F126: 0 | G126: 0 | I126: 0 | J126: 0 | K126: 73775.32953 | L126: 73775.32953 | M126: 0 | N126: 0 | O126: 1.353728828
A127: 86 | B127: 0 | C127: 0 | D127: 0 | E127: 0 | F127: 0 | G127: 0 | I127: 0 | J127: 0 | K127: 73775.32953 | L127: 73775.32953 | M127: 0 | N127: 0 | O127: 1.353728828
A128: 87 | B128: 0 | C128: 0 | D128: 0 | E128: 0 | F128: 0 | G128: 0 | I128: 0 | J128: 0 | K128: 73775.32953 | L128: 73775.32953 | M128: 0 | N128: 0 | O128: 1.353728828 | FG128: 91.45136851
A129: 88 | B129: 0 | C129: 0 | D129: 0 | E129: 0 | F129: 0 | G129: 0 | I129: 0 | J129: 0 | K129: 73775.32953 | L129: 73775.32953 | M129: 0 | N129: 0 | O129: 1.353728828
A130: 89 | B130: 0 | C130: 0 | D130: 0 | E130: 0 | F130: 0 | G130: 0 | I130: 0 | J130: 0 | K130: 73775.32953 | L130: 73775.32953 | M130: 0 | N130: 0 | O130: 1.353728828
A131: 90 | B131: 0 | C131: 0 | D131: 0 | E131: 0 | F131: 0 | G131: 0 | I131: 0 | J131: 0 | K131: 73775.32953 | L131: 73775.32953 | M131: 0 | N131: 0 | O131: 1.353728828 | FK131: 91.45136851
A132: 91 | B132: 0 | C132: 0 | D132: 0 | E132: 0 | F132: 0 | G132: 0 | I132: 0 | J132: 0 | K132: 73775.32953 | L132: 73775.32953 | M132: 0 | N132: 0 | O132: 1.353728828
A133: 92 | B133: 0 | C133: 0 | D133: 0 | E133: 0 | F133: 0 | G133: 0 | I133: 0 | J133: 0 | K133: 73775.32953 | L133: 73775.32953 | M133: 0 | N133: 0 | O133: 1.353728828
A134: 93 | B134: 0 | C134: 0 | D134: 0 | E134: 0 | F134: 0 | G134: 0 | I134: 0 | J134: 0 | K134: 73775.32953 | L134: 73775.32953 | M134: 0 | N134: 0 | O134: 1.353728828 | FO134: 91.45136851
A135: 94 | B135: 0 | C135: 0 | D135: 0 | E135: 0 | F135: 0 | G135: 0 | I135: 0 | J135: 0 | K135: 73775.32953 | L135: 73775.32953 | M135: 0 | N135: 0 | O135: 1.353728828
A136: 95 | B136: 0 | C136: 0 | D136: 0 | E136: 0 | F136: 0 | G136: 0 | I136: 0 | J136: 0 | K136: 73775.32953 | L136: 73775.32953 | M136: 0 | N136: 0 | O136: 1.353728828
A137: 96 | B137: 0 | C137: 0 | D137: 0 | E137: 0 | F137: 0 | G137: 0 | I137: 0 | J137: 0 | K137: 73775.32953 | L137: 73775.32953 | M137: 0 | N137: 0 | O137: 1.353728828 | FS137: 91.45136851
A138: 97 | B138: 0 | C138: 0 | D138: 0 | E138: 0 | F138: 0 | G138: 0 | I138: 0 | J138: 0 | K138: 73775.32953 | L138: 73775.32953 | M138: 0 | N138: 0 | O138: 1.353728828
A139: 98 | B139: 0 | C139: 0 | D139: 0 | E139: 0 | F139: 0 | G139: 0 | I139: 0 | J139: 0 | K139: 73775.32953 | L139: 73775.32953 | M139: 0 | N139: 0 | O139: 1.353728828
A140: 99 | B140: 0 | C140: 0 | D140: 0 | E140: 0 | F140: 0 | G140: 0 | I140: 0 | J140: 0 | K140: 73775.32953 | L140: 73775.32953 | M140: 0 | N140: 0 | O140: 1.353728828 | FW140: 91.45136851
A141: 100 | B141: 0 | C141: 0 | D141: 0 | E141: 0 | F141: 0 | G141: 0 | I141: 0 | J141: 0 | K141: 73775.32953 | L141: 73775.32953 | M141: 0 | N141: 0 | O141: 1.353728828
A142: 101 | B142: 0 | C142: 0 | D142: 0 | E142: 0 | F142: 0 | G142: 0 | I142: 0 | J142: 0 | K142: 73775.32953 | L142: 73775.32953 | M142: 0 | N142: 0 | O142: 1.353728828
A143: 102 | B143: 0 | C143: 0 | D143: 0 | E143: 0 | F143: 0 | G143: 0 | I143: 0 | J143: 0 | K143: 73775.32953 | L143: 73775.32953 | M143: 0 | N143: 0 | O143: 1.353728828 | GA143: 91.45136851
A144: 103 | B144: 0 | C144: 0 | D144: 0 | E144: 0 | F144: 0 | G144: 0 | I144: 0 | J144: 0 | K144: 73775.32953 | L144: 73775.32953 | M144: 0 | N144: 0 | O144: 1.353728828
A145: 104 | B145: 0 | C145: 0 | D145: 0 | E145: 0 | F145: 0 | G145: 0 | I145: 0 | J145: 0 | K145: 73775.32953 | L145: 73775.32953 | M145: 0 | N145: 0 | O145: 1.353728828
A146: 105 | B146: 0 | C146: 0 | D146: 0 | E146: 0 | F146: 0 | G146: 0 | I146: 0 | J146: 0 | K146: 73775.32953 | L146: 73775.32953 | M146: 0 | N146: 0 | O146: 1.353728828 | GE146: 91.45136851
A147: 106 | B147: 0 | C147: 0 | D147: 0 | E147: 0 | F147: 0 | G147: 0 | I147: 0 | J147: 0 | K147: 73775.32953 | L147: 73775.32953 | M147: 0 | N147: 0 | O147: 1.353728828
A148: 107 | B148: 0 | C148: 0 | D148: 0 | E148: 0 | F148: 0 | G148: 0 | I148: 0 | J148: 0 | K148: 73775.32953 | L148: 73775.32953 | M148: 0 | N148: 0 | O148: 1.353728828
A149: 108 | B149: 0 | C149: 0 | D149: 0 | E149: 0 | F149: 0 | G149: 0 | I149: 0 | J149: 0 | K149: 73775.32953 | L149: 73775.32953 | M149: 0 | N149: 0 | O149: 1.353728828 | GI149: 91.45136851
A150: 109 | B150: 0 | C150: 0 | D150: 0 | E150: 0 | F150: 0 | G150: 0 | I150: 0 | J150: 0 | K150: 73775.32953 | L150: 73775.32953 | M150: 0 | N150: 0 | O150: 1.353728828
A151: 110 | B151: 0 | C151: 0 | D151: 0 | E151: 0 | F151: 0 | G151: 0 | I151: 0 | J151: 0 | K151: 73775.32953 | L151: 73775.32953 | M151: 0 | N151: 0 | O151: 1.353728828
A152: 111 | B152: 0 | C152: 0 | D152: 0 | E152: 0 | F152: 0 | G152: 0 | I152: 0 | J152: 0 | K152: 73775.32953 | L152: 73775.32953 | M152: 0 | N152: 0 | O152: 1.353728828 | GM152: 202.2036493
A153: 112 | B153: 0 | C153: 0 | D153: 0 | E153: 0 | F153: 0 | G153: 0 | I153: 0 | J153: 0 | K153: 73775.32953 | L153: 73775.32953 | M153: 0 | N153: 0 | O153: 1.353728828
A154: 113 | B154: 0 | C154: 0 | D154: 0 | E154: 0 | F154: 0 | G154: 0 | I154: 0 | J154: 0 | K154: 73775.32953 | L154: 73775.32953 | M154: 0 | N154: 0 | O154: 1.353728828
A155: 114 | B155: 0 | C155: 0 | D155: 0 | E155: 0 | F155: 0 | G155: 0 | I155: 0 | J155: 0 | K155: 73775.32953 | L155: 73775.32953 | M155: 0 | N155: 0 | O155: 1.353728828 | GQ155: 202.2036493
A156: 115 | B156: 0 | C156: 0 | D156: 0 | E156: 0 | F156: 0 | G156: 0 | I156: 0 | J156: 0 | K156: 73775.32953 | L156: 73775.32953 | M156: 0 | N156: 0 | O156: 1.353728828
A157: 116 | B157: 0 | C157: 0 | D157: 0 | E157: 0 | F157: 0 | G157: 0 | I157: 0 | J157: 0 | K157: 73775.32953 | L157: 73775.32953 | M157: 0 | N157: 0 | O157: 1.353728828
A158: 117 | B158: 0 | C158: 0 | D158: 0 | E158: 0 | F158: 0 | G158: 0 | I158: 0 | J158: 0 | K158: 73775.32953 | L158: 73775.32953 | M158: 0 | N158: 0 | O158: 1.353728828 | GU158: 202.2036493
A159: 118 | B159: 0 | C159: 0 | D159: 0 | E159: 0 | F159: 0 | G159: 0 | I159: 0 | J159: 0 | K159: 73775.32953 | L159: 73775.32953 | M159: 0 | N159: 0 | O159: 1.353728828
A160: 119 | B160: 0 | C160: 0 | D160: 0 | E160: 0 | F160: 0 | G160: 0 | I160: 0 | J160: 0 | K160: 73775.32953 | L160: 73775.32953 | M160: 0 | N160: 0 | O160: 1.353728828
A161: 120 | B161: 0 | C161: 0 | D161: 0 | E161: 0 | F161: 0 | G161: 0 | I161: 0 | J161: 0 | K161: 73775.32953 | L161: 73775.32953 | M161: 0 | N161: 0 | O161: 1.353728828 | GY161: 202.2036493
A162: 121 | B162: 0 | C162: 0 | D162: 0 | E162: 0 | F162: 0 | G162: 0 | I162: 0 | J162: 0 | K162: 73775.32953 | L162: 73775.32953 | M162: 0 | N162: 0 | O162: 1.353728828
A163: 122 | B163: 0 | C163: 0 | D163: 0 | E163: 0 | F163: 0 | G163: 0 | I163: 0 | J163: 0 | K163: 73775.32953 | L163: 73775.32953 | M163: 0 | N163: 0 | O163: 1.353728828
A164: 123 | B164: 0 | C164: 0 | D164: 0 | E164: 0 | F164: 0 | G164: 0 | I164: 0 | J164: 0 | K164: 73775.32953 | L164: 73775.32953 | M164: 0 | N164: 0 | O164: 1.353728828 | HC164: 202.2036493
A165: 124 | B165: 0 | C165: 0 | D165: 0 | E165: 0 | F165: 0 | G165: 0 | I165: 0 | J165: 0 | K165: 73775.32953 | L165: 73775.32953 | M165: 0 | N165: 0 | O165: 1.353728828
A166: 125 | B166: 0 | C166: 0 | D166: 0 | E166: 0 | F166: 0 | G166: 0 | I166: 0 | J166: 0 | K166: 73775.32953 | L166: 73775.32953 | M166: 0 | N166: 0 | O166: 1.353728828
A167: 126 | B167: 0 | C167: 0 | D167: 0 | E167: 0 | F167: 0 | G167: 0 | I167: 0 | J167: 0 | K167: 73775.32953 | L167: 73775.32953 | M167: 0 | N167: 0 | O167: 1.353728828 | HG167: 202.2036493
A168: 127 | B168: 0 | C168: 0 | D168: 0 | E168: 0 | F168: 0 | G168: 0 | I168: 0 | J168: 0 | K168: 73775.32953 | L168: 73775.32953 | M168: 0 | N168: 0 | O168: 1.353728828
A169: 128 | B169: 0 | C169: 0 | D169: =IF(N<numrings,N,0) -> 0 | E169: =IF(N<numrings2,N,0) -> 0 | F169: 0 | G169: 0 | I169: =IF(N<numrings3,N,CEILING(numrings3,0)) -> 0 | J169: =IF(N<numrings4,N,CEILING(numrings4,0)) -> 0 | K169: =(Rlateral*tc+_Rfr4*(N-tc))/N -> 73775.32953 | L169: =(Rlateral*bc+_Rfr4*(N-bc))/N -> 73775.32953 | M169: 0 | N169: 0 | O169: 1.353728828
A170: 129 | B170: =IF(N<=numrings,N*8/(Rsa+N*Rlateral),0) -> 0 | C170: =IF(N<=numrings,N*8/(Rfr4_vert+N*Rlateral_top_ave),0) -> 0 | D170: 0 | E170: 0 | F170: =IF(X>0,IF(Y>0,N*8/(Rsa+N*Rlateral_top_ave),(4*length_max+2)/(Rsa+N*Rlateral_top_ave)),IF(Y>0,(4*width_max+2)/(Rsa+N*Rlateral_top_ave),0)) -> 0 | G170: =IF(X>0,IF(Y>0,N*8/(Rsa+N*Rlateral_bot_ave),(4*length_max+2)/(Rsa+N*Rlateral_bot_ave)),IF(Y>0,(4*width_max+2)/(Rsa+N*Rlateral_bot_ave),0)) -> 0 | I170: 0 | J170: 0 | K170: 73775.32953 | L170: 73775.32953 | M170: =IF(X>0,IF(Y>0,N*8/(_Rfr4+N*Rlateral_top_ave),(4*length_max+2)/(_Rfr4+N*Rlateral_top_ave)),IF(Y>0,(4*width_max+2)/(_Rfr4+N*Rlateral_top_ave),0)) -> 0 | N170: =IF($F170=0,0,IF(pdiss_ave*(SUM($F$41:$F$1041)-$F169)^-1<Ta,Ta,pdiss_ave*(SUM($F$41:$F$1041)-$F169)^-1)) -> 0 | O170: 1.353728828 | HK170: 202.2036493
A171: 130 | B171: 0 | C171: 0 | D171: 0 | E171: 0 | F171: 0 | G171: 0 | I171: 0 | J171: 0 | K171: 73775.32953 | L171: 73775.32953 | M171: 0 | N171: 0 | O171: =$O170-(SUM(F170:F1170)-F171)*$O170 -> 1.353728828
A172: 131 | B172: 0 | C172: 0 | D172: 0 | E172: 0 | F172: 0 | G172: 0 | I172: 0 | J172: 0 | K172: 73775.32953 | L172: 73775.32953 | M172: 0 | N172: 0 | O172: 1.353728828
A173: 132 | B173: 0 | C173: 0 | D173: 0 | E173: 0 | F173: 0 | G173: 0 | I173: 0 | J173: 0 | K173: 73775.32953 | L173: 73775.32953 | M173: 0 | N173: 0 | O173: 1.353728828 | HO173: 202.2036493
A174: 133 | B174: 0 | C174: 0 | D174: 0 | E174: 0 | F174: 0 | G174: 0 | I174: 0 | J174: 0 | K174: 73775.32953 | L174: 73775.32953 | M174: 0 | N174: 0 | O174: 1.353728828
A175: 134 | B175: 0 | C175: 0 | D175: 0 | E175: 0 | F175: 0 | G175: 0 | I175: 0 | J175: 0 | K175: 73775.32953 | L175: 73775.32953 | M175: 0 | N175: 0 | O175: 1.353728828
A176: 135 | B176: 0 | C176: 0 | D176: 0 | E176: 0 | F176: 0 | G176: 0 | I176: 0 | J176: 0 | K176: 73775.32953 | L176: 73775.32953 | M176: 0 | N176: 0 | O176: 1.353728828 | HS176: 202.2036493
A177: 136 | B177: 0 | C177: 0 | D177: 0 | E177: 0 | F177: 0 | G177: 0 | I177: 0 | J177: 0 | K177: 73775.32953 | L177: 73775.32953 | M177: 0 | N177: 0 | O177: 1.353728828
A178: 137 | B178: 0 | C178: 0 | D178: 0 | E178: 0 | F178: 0 | G178: 0 | I178: 0 | J178: 0 | K178: 73775.32953 | L178: 73775.32953 | M178: 0 | N178: 0 | O178: 1.353728828
A179: 138 | B179: 0 | C179: 0 | D179: 0 | E179: 0 | F179: 0 | G179: 0 | I179: 0 | J179: 0 | K179: 73775.32953 | L179: 73775.32953 | M179: 0 | N179: 0 | O179: 1.353728828 | HW179: 202.2036493
A180: 139 | B180: 0 | C180: 0 | D180: 0 | E180: 0 | F180: 0 | G180: 0 | I180: 0 | J180: 0 | K180: 73775.32953 | L180: 73775.32953 | M180: 0 | N180: 0 | O180: 1.353728828
A181: 140 | B181: 0 | C181: 0 | D181: 0 | E181: 0 | F181: 0 | G181: 0 | I181: 0 | J181: 0 | K181: 73775.32953 | L181: 73775.32953 | M181: 0 | N181: 0 | O181: 1.353728828
A182: 141 | B182: 0 | C182: 0 | D182: 0 | E182: 0 | F182: 0 | G182: 0 | I182: 0 | J182: 0 | K182: 73775.32953 | L182: 73775.32953 | M182: 0 | N182: 0 | O182: 1.353728828 | IA182: 202.2036493
A183: 142 | B183: 0 | C183: 0 | D183: 0 | E183: 0 | F183: 0 | G183: 0 | I183: 0 | J183: 0 | K183: 73775.32953 | L183: 73775.32953 | M183: 0 | N183: 0 | O183: 1.353728828
A184: 143 | B184: 0 | C184: 0 | D184: 0 | E184: 0 | F184: 0 | G184: 0 | I184: 0 | J184: 0 | K184: 73775.32953 | L184: 73775.32953 | M184: 0 | N184: 0 | O184: 1.353728828
A185: 144 | B185: 0 | C185: 0 | D185: 0 | E185: 0 | F185: 0 | G185: 0 | I185: 0 | J185: 0 | K185: 73775.32953 | L185: 73775.32953 | M185: 0 | N185: 0 | O185: 1.353728828 | IE185: 202.2036493
A186: 145 | B186: 0 | C186: 0 | D186: 0 | E186: 0 | F186: 0 | G186: 0 | I186: 0 | J186: 0 | K186: 73775.32953 | L186: 73775.32953 | M186: 0 | N186: 0 | O186: 1.353728828
A187: 146 | B187: 0 | C187: 0 | D187: 0 | E187: 0 | F187: 0 | G187: 0 | I187: 0 | J187: 0 | K187: 73775.32953 | L187: 73775.32953 | M187: 0 | N187: 0 | O187: 1.353728828
A188: 147 | B188: 0 | C188: 0 | D188: 0 | E188: 0 | F188: 0 | G188: 0 | I188: 0 | J188: 0 | K188: 73775.32953 | L188: 73775.32953 | M188: 0 | N188: 0 | O188: 1.353728828 | II188: 202.2036493
A189: 148 | B189: 0 | C189: 0 | D189: 0 | E189: 0 | F189: 0 | G189: 0 | I189: 0 | J189: 0 | K189: 73775.32953 | L189: 73775.32953 | M189: 0 | N189: 0 | O189: 1.353728828
A190: 149 | B190: 0 | C190: 0 | D190: 0 | E190: 0 | F190: 0 | G190: 0 | I190: 0 | J190: 0 | K190: 73775.32953 | L190: 73775.32953 | M190: 0 | N190: 0 | O190: 1.353728828
A191: 150 | B191: 0 | C191: 0 | D191: 0 | E191: 0 | F191: 0 | G191: 0 | I191: 0 | J191: 0 | K191: 73775.32953 | L191: 73775.32953 | M191: 0 | N191: 0 | O191: 1.353728828 | IM191: 202.2036493
A192: 151 | B192: 0 | C192: 0 | D192: 0 | E192: 0 | F192: 0 | G192: 0 | I192: 0 | J192: 0 | K192: 73775.32953 | L192: 73775.32953 | M192: 0 | N192: 0 | O192: 1.353728828
A193: 152 | B193: 0 | C193: 0 | D193: 0 | E193: 0 | F193: 0 | G193: 0 | I193: 0 | J193: 0 | K193: 73775.32953 | L193: 73775.32953 | M193: 0 | N193: 0 | O193: 1.353728828
A194: 153 | B194: 0 | C194: 0 | D194: 0 | E194: 0 | F194: 0 | G194: 0 | I194: 0 | J194: 0 | K194: 73775.32953 | L194: 73775.32953 | M194: 0 | N194: 0 | O194: 1.353728828 | IQ194: 202.2036493
A195: 154 | B195: 0 | C195: 0 | D195: 0 | E195: 0 | F195: 0 | G195: 0 | I195: 0 | J195: 0 | K195: 73775.32953 | L195: 73775.32953 | M195: 0 | N195: 0 | O195: 1.353728828
A196: 155 | B196: 0 | C196: 0 | D196: 0 | E196: 0 | F196: 0 | G196: 0 | I196: 0 | J196: 0 | K196: 73775.32953 | L196: 73775.32953 | M196: 0 | N196: 0 | O196: 1.353728828
A197: 156 | B197: 0 | C197: 0 | D197: 0 | E197: 0 | F197: 0 | G197: 0 | I197: 0 | J197: 0 | K197: 73775.32953 | L197: 73775.32953 | M197: 0 | N197: 0 | O197: 1.353728828 | IU197: 202.2036493
A198: 157 | B198: 0 | C198: 0 | D198: 0 | E198: 0 | F198: 0 | G198: 0 | I198: 0 | J198: 0 | K198: 73775.32953 | L198: 73775.32953 | M198: 0 | N198: 0 | O198: 1.353728828
A199: 158 | B199: 0 | C199: 0 | D199: 0 | E199: 0 | F199: 0 | G199: 0 | I199: 0 | J199: 0 | K199: 73775.32953 | L199: 73775.32953 | M199: 0 | N199: 0 | O199: 1.353728828
A200: 159 | B200: 0 | C200: 0 | D200: 0 | E200: 0 | F200: 0 | G200: 0 | I200: 0 | J200: 0 | K200: 73775.32953 | L200: 73775.32953 | M200: 0 | N200: 0 | O200: 1.353728828
A201: 160 | B201: 0 | C201: 0 | D201: 0 | E201: 0 | F201: 0 | G201: 0 | I201: 0 | J201: 0 | K201: 73775.32953 | L201: 73775.32953 | M201: 0 | N201: 0 | O201: 1.353728828
A202: 161 | B202: 0 | C202: 0 | D202: 0 | E202: 0 | F202: 0 | G202: 0 | I202: 0 | J202: 0 | K202: 73775.32953 | L202: 73775.32953 | M202: 0 | N202: 0 | O202: 1.353728828
A203: 162 | B203: 0 | C203: 0 | D203: 0 | E203: 0 | F203: 0 | G203: 0 | I203: 0 | J203: 0 | K203: 73775.32953 | L203: 73775.32953 | M203: 0 | N203: 0 | O203: 1.353728828
A204: 163 | B204: 0 | C204: 0 | D204: 0 | E204: 0 | F204: 0 | G204: 0 | I204: 0 | J204: 0 | K204: 73775.32953 | L204: 73775.32953 | M204: 0 | N204: 0 | O204: 1.353728828
... 837 more rows

Sheet Gvariable (hidden)
A1: Hz | B1: 1 | C1: H | D1: 1 | E1: F | F1: 1 | G1: M | H1: 1 | I1: W | J1: 1 | K1: A | L1: 1 | M1: V | N1: 1 | O1: Ohm | P1: 1 | Q1: mho | R1: 1 | S1: g | T1: 1 | U1: ppm | V1: 1e-06
A2: KHz | B2: 1000 | C2: mH | D2: 0.001 | E2: mF | F2: 0.001 | G2: cm | H2: 0.01 | I2: mW | J2: 0.001 | K2: KA | L2: 1000 | M2: KV | N2: 1000 | O2: Kohm | P2: 1000 | Q2: mmho | R2: 0.001 | S2: Kg | T2: 1000
A3: s | B3: 1 | C3: uH | D3: 1e-06 | E3: uF | F3: 1e-06 | G3: mm | H3: 0.001 | I3: uW | J3: 1e-06 | K3: mA | L3: 0.001 | M3: mV | N3: 0.001 | O3: mOhm | P3: 0.001 | Q3: umho | R3: 1e-06
A4: ms | B4: 0.001 | C4: nH | D4: 1e-09 | E4: nF | F4: 1e-09 | G4: KM | H4: 1000 | I4: pW | J4: 1e-12 | K4: uA | L4: 1e-06 | M4: uV | N4: 1e-06 | O4: uOhm | P4: 1e-06
A5: us | B5: 1e-06 | C5: pH | D5: 1e-12 | E5: pF | F5: 1e-12 | G5: M^2 | H5: 1 | I5: W | J5: 1 | K5: nA | L5: 1e-09 | M5: nV | N5: 1e-09 | O5: nOhm | P5: 1e-09
A6: ns | B6: 1e-09 | G6: cm^2 | H6: 0.0001 | K6: pA | L6: 1e-12 | M6: pV | N6: 1e-12
A7: MHz | B7: 1000000 | G7: mm^2 | H7: 1e-06
A8: GHz | B8: 1000000000 | G8: cm^3 | H8: 1e-06

Sheet Read Me!
A1: Disclaimer
A2: This thermal estimate tool was written to accompany AN-2020 to provide an (immediate/free) estimate of thermal resistance which is usually accurate to within +-30% for a single component and with very simple airflow restrictions.
A3: Designs based on this tool should be evaluated in the end environment to determine their suitability.
A5: Directions (Don't forget to enable Macros under tools/macros/security to allow the visual basic scripts to run)
A7: Cells in Yellow are Required input parameters | D7: Cells in Light Blue are non critical input parameters
A9: Cells in Grey are calculations | D9: Cells in Orange are the results
A11: Cells in Green are Descriptions
A13: 1)
A14: The thermal resistance estimate is shown on the top sheet. This value depends on all of the input parameters including power dissipation, and board size.
A24: 2)
A25: Hit the update button to recalculate the thermal resistance after changing input parameters. This runs an iterative process to fine tune the result.
A33: 3)
A34: Enter the device parameters including ThetaJC and Power dissipation internal to the device
A46: 4)
A47: Enter the boar parameters including Board Width and Length, Thickness and Copper weight
A60: Don't Forget the thermal
A61: Vias. They are vital to good
A62: board design
B68: There are also options for heatsinks and airflow. Leaving these at zero, means no airflow and no heatsink.

Sheet Bug List
A2: Version 1.0
B3: Bugs
B4: 1) Copper Weight has less impact in calculated value, then measured data shows.
B5: 2) Automatic Update of copper heatsinking to match board size is not working.
B6: 3) Power Dissipation has more impact in calculated value, then measured data shows.
